[Event "4NCL 2019-20"]
[Site "Daventry"]
[Date "2020.01.11"]
[Round "3"]
[White "Lauterbach, Ingrid"]
[Black "Andrzejewska, Anna"]
[Result "1-0"]
[ECO "C00"]
[WhiteElo "2051"]
[BlackElo "1974"]
[Annotator "NA"]
[PlyCount "98"]
[EventDate "2020.01.11"]
[EventCountry "ENG"]
[SourceTitle "playchess.com"]
[Source "ChessBase"]
[SourceQuality "1"]
[TimeControl "40/6000:3000+30"]

1. Nf3 {[%emt 0:00:00]} d5 {[%emt 0:00:00]} 2. g3 {[%emt 0:00:00]} Nf6 {[%emt 0:00:00]} 3. Bg2 {[%emt 0:00:00]} e6 {[%emt 0:00:00]} 4. d3 {[%emt 0:00:00]} Be7 {[%emt 0:01:43]} 5. Nbd2 {[%emt 0:00:00]} O-O {[%emt 0:00:11]} 6. O-O {[%emt 0:00:00]} c5 {[%emt 0:06:55]} 7. e4 {[%emt 0:00:00]} Nc6 {[%emt 0:03:45]} 8. Re1 {[%emt 0:01:04]} Qc7 {[%emt 0:07:13]} 9. c3 {[%emt 0:02:32]} dxe4 {[%emt 0:10:19]} 10. dxe4 {[%emt 0:00:57]} e5 {[%emt 0:03:06]} 11. Qc2 {[%emt 0:03:25]} Rd8 {[%emt 0:04:05]} 12. Nf1 {[%emt 0:12:43]} h6 {[%emt 0:00:44]} 13. Ne3 {[%emt 0:00:00]} Be6 {[%emt 0:00:56]} 14. b3 {[%emt 0:06:13]} b5 {[%emt 0:04:01]} 15. Bf1 {[%emt 0:13:22]} a6 {[%emt 0:07:00]} 16. Bb2 {[%emt 0:02:15]} g6 {[%emt 0:12:49]} 17. Rad1 {[%emt 0:04:12]} Rxd1 {[%emt 0:05:20]} 18. Rxd1 {[%emt 0:00:08]} Rd8 {[%emt 0:00:40]} 19. Rxd8+ {[%emt 0:01:07]} Qxd8 {[%emt 0:00:52]} 20. Nd2 {[%emt 0:07:31]} Ng4 {[%emt 0:05:25]} 21. Nxg4 {[%emt 0:08:21]} Bxg4 {[%emt 0:00:00]} 22. h3 {[%emt 0:00:32]} Be6 {[%emt 0:00:47]} 23. Bg2 {[%emt 0:01:21]} Qd7 {[%emt 0:04:10]} 24. Kh2 {[%emt 0:00:53]} h5 {[%emt 0:01:04]} 25. h4 {[%emt 0:04:50]} Bf6 {[%emt 0:05:08]} 26. Nf1 {[%emt 0:01:03]} c4 {[%emt 0:00:54]} 27. Ne3 {[%emt 0:02:56]} cxb3 {[%emt 0:00:11]} 28. axb3 {[%emt 0:03:18]} Bd8 {[%emt 0:03:10]} 29. Nd5 {[%emt 0:03:42]} Kg7 {[%emt 0:06:57]} 30. c4 {[%emt 0:00:00]} f6 {[%emt 0:00:00]} 31. cxb5 {[%emt 0:00:00]} axb5 {[%emt 0:00:00]} 32. Qc5 {[%emt 0:00:00]} Ne7 {[%emt 0:00:00]} 33. Ba3 {[%emt 0:00:00]} Nxd5 {[%emt 0:00:00]} 34. exd5 {[%emt 0:00:00]} Bf7 {[%emt 0:00:00]} 35. d6 {[%emt 0:00:00]} Be8 {[%emt 0:00:00]} 36. Bb4 {[%emt 0:00:00]} Qg4 {[%emt 0:00:00]} 37. Bh3 {[%emt 0:00:00]} Qd4 {[%emt 0:00:00]} 38. d7 {[%emt 0:00:00]} Qxc5 {[%emt 0:00:00]} 39. dxe8=N+ {[%emt 0:00:00]} Kf7 {[%emt 0:00:00]} 40. Bxc5 {[%emt 0:00:00]} Kxe8 {[%emt 0:00:00]} 41. Bf1 {[%emt 0:50:30]} Kd7 {[%emt 0:47:44]} 42. Bxb5+ {[%emt 0:00:30]} Ke6 {[%emt 0:00:30]} 43. Bc4+ {[%emt 0:00:30]} Kd7 {[%emt 0:00:30]} 44. Bf7 {[%emt 0:00:30]} Kc6 {[%emt 0:04:17]} 45. b4 {[%emt 0:15:02]} g5 {[%emt 0:00:30]} 46. hxg5 {[%emt 0:00:30]} fxg5 {[%emt 0:00:30]} 47. Bxh5 {[%emt 0:00:30]} e4 {[%emt 0:00:30]} 48. Bf7 {[%emt 0:00:30]} Bf6 {[%emt 0:00:30]} 49. Kg2 {[%emt 0:00:30]} Kb5 {[%emt 0:00:30]} 1-0

[Event "4NCL 2019-20"]
[Site "Daventry"]
[Date "2020.01.11"]
[Round "3"]
[White "Skulte, Christopher"]
[Black "Merry, Alan B"]
[Result "0-1"]
[ECO "C07"]
[WhiteElo "2033"]
[BlackElo "2423"]
[Annotator "ChessBase"]
[PlyCount "38"]
[EventDate "2020.01.11"]
[EventCountry "ENG"]
[SourceTitle "playchess.com"]
[Source "ChessBase"]
[SourceQuality "1"]
[TimeControl "40/6000:3000+30"]

1. e4 {[%emt 0:00:00]} e6 {[%emt 0:00:00]} 2. d4 {[%emt 0:00:00]} d5 {[%emt 0:00:00]} 3. Nd2 {[%emt 0:00:00]} c5 {[%emt 0:00:00]} 4. exd5 {[%emt 0:00:00]} Qxd5 {[%emt 0:00:00]} 5. Ngf3 {[%emt 0:00:00]} cxd4 {[%emt 0:00:00]} 6. Bc4 {[%emt 0:00:00]} Qd7 {[%emt 0:00:00]} 7. Nb3 {[%emt 0:00:38]} Nc6 {[%emt 0:00:00]} 8. Nbxd4 {[%emt 0:00:16]} Nxd4 {[%emt 0:00:00]} 9. Nxd4 {[%emt 0:00:00]} a6 {[%emt 0:00:00]} 10. Bg5 {[%emt 0:19:18]} Be7 {[%emt 0:00:00]} 11. Bxe7 {[%emt 0:08:24]} Nxe7 {[%emt 0:02:28]} 12. Qg4 {[%emt 0:00:21]} Qc7 {[%emt 0:07:07]} 13. Nf3 {[%emt 0:07:59]} O-O {[%emt 0:08:12]} 14. O-O-O {[%emt 0:04:05]} e5 {[%emt 0:12:36]} 15. Qe4 {[%emt 0:10:46]} Bf5 {[%emt 0:00:00]} 16. Qe2 {[%emt 0:00:00]} Nc6 {[%emt 0:06:14]} 17. Bd3 {[%emt 0:04:47]} e4 {[%emt 0:05:38]} 18. Bxe4 {[%emt 0:03:06]} Rfe8 {[%emt 0:00:59]} 19. Nd2 {[%emt 0:00:47]} Bxe4 {[%emt 0:00:50]} 0-1

[Event "4NCL 2019-20"]
[Site "Daventry"]
[Date "2020.01.11"]
[Round "3"]
[White "Varney, Zoe"]
[Black "Kolbus, Dietmar"]
[Result "0-1"]
[ECO "B04"]
[WhiteElo "2004"]
[BlackElo "2294"]
[Annotator "ChessBase"]
[PlyCount "72"]
[EventDate "2020.01.11"]
[EventCountry "ENG"]
[SourceTitle "playchess.com"]
[Source "ChessBase"]
[SourceQuality "1"]
[TimeControl "40/6000:3000+30"]

1. e4 {[%emt 0:00:00]} Nf6 {[%emt 0:00:00]} 2. e5 {[%emt 0:00:15]} Nd5 {[%emt 0:00:00]} 3. d4 {[%emt 0:00:00]} d6 {[%emt 0:00:00]} 4. exd6 {[%emt 0:03:55]} cxd6 {[%emt 0:00:00]} 5. Nf3 {[%emt 0:00:20]} g6 {[%emt 0:01:20]} 6. c4 {[%emt 0:07:53]} Nb6 {[%emt 0:00:07]} 7. Nc3 {[%emt 0:02:39]} Bg7 {[%emt 0:00:00]} 8. Bd3 {[%emt 0:08:31]} O-O {[%emt 0:00:00]} 9. O-O {[%emt 0:00:00]} Nc6 {[%emt 0:03:19]} 10. Be3 {[%emt 0:01:24]} Bg4 {[%emt 0:16:55]} 11. h3 {[%emt 0:11:02]} Bxf3 {[%emt 0:00:10]} 12. Qxf3 {[%emt 0:00:00]} Qd7 {[%emt 0:13:21]} 13. d5 {[%emt 0:04:57]} Ne5 {[%emt 0:01:56]} 14. Qe2 {[%emt 0:00:00]} Rfc8 {[%emt 0:03:11]} 15. Bxb6 {[%emt 0:04:23]} axb6 {[%emt 0:00:00]} 16. Rfc1 {[%emt 0:09:21]} Ra5 {[%emt 0:00:55]} 17. Rab1 {[%emt 0:15:37]} Nxd3 {[%emt 0:01:53]} 18. Qxd3 {[%emt 0:03:02]} Bxc3 {[%emt 0:00:20]} 19. bxc3 {[%emt 0:00:48]} Rxa2 {[%emt 0:03:04]} 20. Rxb6 {[%emt 0:00:16]} Ra4 {[%emt 0:02:42]} 21. Rb4 {[%emt 0:01:57]} b5 {[%emt 0:01:35]} 22. Rxb5 {[%emt 0:04:45]} Raxc4 {[%emt 0:00:00]} 23. Rb3 {[%emt 0:00:53]} Qc7 {[%emt 0:02:53]} 24. Kf1 {[%emt 0:02:23]} Kg7 {[%emt 0:00:12]} 25. Ke2 {[%emt 0:00:01]} Qc5 {[%emt 0:02:15]} 26. f3 {[%emt 0:00:53]} Rc7 {[%emt 0:00:08]} 27. g3 {[%emt 0:06:46]} Qa5 {[%emt 0:04:57]} 28. Rc2 {[%emt 0:00:58]} Qa1 {[%emt 0:03:10]} 29. h4 {[%emt 0:02:37]} Qg1 {[%emt 0:02:46]} 30. f4 {[%emt 0:00:24]} Qg2+ {[%emt 0:02:38]} 31. Kd1 {[%emt 0:00:00]} Qh1+ {[%emt 0:00:00]} 32. Kd2 {[%emt 0:00:00]} R7c5 {[%emt 0:00:06]} 33. Rc1 {[%emt 0:01:50]} Qg2+ {[%emt 0:00:00]} 34. Ke1 {[%emt 0:01:01]} Re4+ {[%emt 0:00:00]} 35. Kd1 {[%emt 0:00:00]} Rxd5 {[%emt 0:00:00]} 36. Qxd5 {[%emt 0:00:00]} Qe2# {[%emt 0:00:00]} 0-1

[Event "4NCL 2019-20"]
[Site "Daventry"]
[Date "2020.01.11"]
[Round "3"]
[White "O'Gorman, Alice"]
[Black "Povah, Nigel E"]
[Result "0-1"]
[ECO "B47"]
[WhiteElo "1906"]
[BlackElo "2284"]
[Annotator "ChessBase"]
[PlyCount "74"]
[EventDate "2020.01.11"]
[EventCountry "ENG"]
[SourceTitle "playchess.com"]
[Source "ChessBase"]
[SourceQuality "1"]
[TimeControl "40/6000:3000+30"]

1. e4 {[%emt 0:00:00]} c5 {[%emt 0:00:00]} 2. Nf3 {[%emt 0:00:00]} Nc6 {[%emt 0:00:00]} 3. d4 {[%emt 0:00:00]} cxd4 {[%emt 0:00:00]} 4. Nxd4 {[%emt 0:00:00]} e6 {[%emt 0:00:00]} 5. Nc3 {[%emt 0:00:49]} Qc7 {[%emt 0:00:00]} 6. Ndb5 {[%emt 0:00:49]} Qb8 {[%emt 0:00:00]} 7. Be3 {[%emt 0:00:00]} a6 {[%emt 0:00:00]} 8. Bb6 {[%emt 0:00:00]} axb5 {[%emt 0:00:00]} 9. Nxb5 {[%emt 0:00:00]} Bb4+ {[%emt 0:00:00]} 10. c3 {[%emt 0:00:00]} Ba5 {[%emt 0:00:00]} 11. Nc7+ {[%emt 0:00:00]} Qxc7 {[%emt 0:00:00]} 12. Bxc7 {[%emt 0:00:00]} Bxc7 {[%emt 0:00:00]} 13. Qg4 {[%emt 0:00:00]} Be5 {[%emt 0:00:07]} 14. f4 {[%emt 0:03:03]} Nf6 {[%emt 0:00:30]} 15. Qf3 {[%emt 0:01:58]} Bc7 {[%emt 0:00:11]} 16. g3 {[%emt 0:03:52]} O-O {[%emt 0:12:45]} 17. Bd3 {[%emt 0:02:36]} d5 {[%emt 0:18:51]} 18. e5 {[%emt 0:08:54]} Nd7 {[%emt 0:00:00]} 19. h4 {[%emt 0:01:19]} f6 {[%emt 0:06:29]} 20. Qh5 {[%emt 0:04:21]} h6 {[%emt 0:10:45]} 21. g4 {[%emt 0:08:12]} fxe5 {[%emt 0:03:45]} 22. g5 {[%emt 0:01:36]} e4 {[%emt 0:03:58]} 23. Rg1 {[%emt 0:10:22]} Rf7 {[%emt 0:26:44]} 24. Be2 {[%emt 0:05:09]} Bxf4 {[%emt 0:03:22]} 25. Bg4 {[%emt 0:03:04]} Nde5 {[%emt 0:03:32]} 26. g6 {[%emt 0:07:00]} Rf6 {[%emt 0:00:28]} 27. Kd1 {[%emt 0:01:42]} Bd7 {[%emt 0:00:50]} 28. Rf1 {[%emt 0:01:38]} Nc4 {[%emt 0:01:50]} 29. Ke2 {[%emt 0:02:28]} Raf8 {[%emt 0:01:41]} 30. Bh3 {[%emt 0:01:26]} N4e5 {[%emt 0:00:00]} 31. Kd1 {[%emt 0:00:51]} Nd3 {[%emt 0:00:32]} 32. Kc2 {[%emt 0:02:14]} Nce5 {[%emt 0:00:00]} 33. b3 {[%emt 0:01:59]} b5 {[%emt 0:00:00]} 34. a4 {[%emt 0:01:37]} bxa4 {[%emt 0:00:13]} 35. bxa4 {[%emt 0:00:00]} Nc4 {[%emt 0:00:00]} 36. Rfb1 {[%emt 0:06:00]} Bd6 {[%emt 0:00:00]} 37. Bf1 {[%emt 0:00:14]} Rf2+ {[%emt 0:01:02]} 0-1

[Event "4NCL 2019-20"]
[Site "Daventry"]
[Date "2020.01.11"]
[Round "3"]
[White "York-Weaving, Anna"]
[Black "Hebden, Mark L"]
[Result "0-1"]
[ECO "C86"]
[WhiteElo "1739"]
[BlackElo "2434"]
[Annotator "RC"]
[PlyCount "58"]
[EventDate "2020.01.11"]
[EventCountry "ENG"]
[SourceTitle "playchess.com"]
[Source "ChessBase"]
[SourceQuality "1"]
[TimeControl "40/6000:3000+30"]

1. e4 {[%emt 0:00:00]} e5 {[%emt 0:00:00]} 2. Nf3 {[%emt 0:00:00]} Nc6 {[%emt 0:00:00]} 3. Bb5 {[%emt 0:00:00]} a6 {[%emt 0:00:00]} 4. Ba4 {[%emt 0:00:00]} Nf6 {[%emt 0:00:00]} 5. Qe2 {[%emt 0:00:00]} Be7 {[%emt 0:00:00]} 6. c3 {[%emt 0:00:13]} b5 {[%emt 0:00:00]} 7. Bb3 {[%emt 0:00:00]} O-O {[%emt 0:00:00]} 8. O-O {[%emt 0:00:07]} d5 {[%emt 0:00:00]} 9. exd5 {[%emt 0:14:28]} e4 {[%emt 0:00:00]} 10. dxc6 {[%emt 0:07:00]} Bg4 {[%emt 0:00:00]} 11. d4 {[%emt 0:03:44]} exf3 {[%emt 0:00:00]} 12. gxf3 {[%emt 0:00:00]} Bh3 {[%emt 0:02:43]} 13. Re1 {[%emt 0:05:24]} Re8 {[%emt 0:06:31]} 14. Nd2 {[%emt 0:03:02]} Qd6 {[%emt 0:01:02]} 15. Ne4 {[%emt 0:05:48]} Nxe4 {[%emt 0:02:12]} 16. Qxe4 {[%emt 0:03:36]} Bf8 {[%emt 0:00:00]} 17. Bf4 {[%emt 0:04:48]} Rxe4 {[%emt 0:00:00]} 18. Bxd6 {[%emt 0:00:00]} Rxe1+ {[%emt 0:00:00]} 19. Rxe1 {[%emt 0:00:00]} Bxd6 {[%emt 0:00:00]} 20. a4 {[%emt 0:06:19]} Kf8 {[%emt 0:10:36]} 21. axb5 {[%emt 0:11:34]} axb5 {[%emt 0:00:42]} 22. c4 {[%emt 0:00:00]} bxc4 {[%emt 0:02:13]} 23. Bxc4 {[%emt 0:00:00]} Bb4 {[%emt 0:03:47]} 24. Rd1 {[%emt 0:00:56]} Ke7 {[%emt 0:00:29]} 25. Bf1 {[%emt 0:10:37]} Bxf1 {[%emt 0:00:19]} 26. Kxf1 {[%emt 0:00:00]} Kd6 {[%emt 0:00:00]} 27. Ke2 {[%emt 0:03:27]} Ra2 {[%emt 0:01:09]} 28. d5 {[%emt 0:02:23]} Rxb2+ {[%emt 0:00:21]} 29. Ke3 {[%emt 0:00:02]} Bc5+ {[%emt 0:00:09]} 0-1

[Event "4NCL 2019-20"]
[Site "Daventry"]
[Date "2020.01.11"]
[Round "3"]
[White "Benhamida, Aisha"]
[Black "McDonald, Neil"]
[Result "0-1"]
[ECO "B01"]
[WhiteElo "1577"]
[BlackElo "2408"]
[Annotator "ChessBase"]
[PlyCount "92"]
[EventDate "2020.01.11"]
[EventCountry "ENG"]
[SourceTitle "playchess.com"]
[Source "ChessBase"]
[SourceQuality "1"]
[TimeControl "40/6000:3000+30"]

1. e4 {[%emt 0:00:00]} d5 {[%emt 0:00:00]} 2. exd5 {[%emt 0:00:00]} Qxd5 {[%emt 0:00:00]} 3. Nc3 {[%emt 0:00:00]} Qd6 {[%emt 0:00:00]} 4. Nf3 {[%emt 0:00:34]} Nf6 {[%emt 0:00:00]} 5. Bc4 {[%emt 0:03:41]} g6 {[%emt 0:00:07]} 6. O-O {[%emt 0:00:00]} Bg7 {[%emt 0:00:16]} 7. d3 {[%emt 0:00:00]} O-O {[%emt 0:01:11]} 8. h3 {[%emt 0:01:05]} a6 {[%emt 0:00:51]} 9. Re1 {[%emt 0:04:27]} b5 {[%emt 0:00:39]} 10. Bb3 {[%emt 0:00:00]} Bb7 {[%emt 0:01:15]} 11. Bg5 {[%emt 0:05:51]} Nc6 {[%emt 0:06:26]} 12. Qd2 {[%emt 0:01:33]} Na5 {[%emt 0:03:04]} 13. Bf4 {[%emt 0:09:47]} Qd8 {[%emt 0:03:45]} 14. Ne5 {[%emt 0:05:39]} Nxb3 {[%emt 0:03:28]} 15. axb3 {[%emt 0:01:03]} Re8 {[%emt 0:01:00]} 16. Bh6 {[%emt 0:04:55]} Bh8 {[%emt 0:01:06]} 17. Qf4 {[%emt 0:02:08]} Qd6 {[%emt 0:06:21]} 18. g4 {[%emt 0:01:48]} b4 {[%emt 0:10:41]} 19. Ne4 {[%emt 0:09:24]} Qd5 {[%emt 0:04:33]} 20. Nc4 {[%emt 0:11:24]} Rac8 {[%emt 0:14:08]} 21. Ra5 {[%emt 0:00:13]} Qe6 {[%emt 0:04:28]} 22. Re5 {[%emt 0:04:05]} Nd5 {[%emt 0:00:31]} 23. Qg3 {[%emt 0:15:40]} Bxe5 {[%emt 0:00:00]} 24. Nxe5 {[%emt 0:00:00]} Nf6 {[%emt 0:06:37]} 25. Ng5 {[%emt 0:02:34]} Qd5 {[%emt 0:00:00]} 26. Qh2 {[%emt 0:00:51]} Rf8 {[%emt 0:09:29]} 27. Bxf8 {[%emt 0:06:03]} Rxf8 {[%emt 0:00:00]} 28. f4 {[%emt 0:00:00]} Kg7 {[%emt 0:04:09]} 29. Ngf3 {[%emt 0:00:46]} Ne8 {[%emt 0:04:08]} 30. Nd2 {[%emt 0:01:07]} Nd6 {[%emt 0:00:38]} 31. Nef3 {[%emt 0:00:28]} Qc5+ {[%emt 0:02:00]} 32. d4 {[%emt 0:00:40]} Qxc2 {[%emt 0:00:01]} 33. Qe2 {[%emt 0:00:00]} Qxb2 {[%emt 0:01:57]} 34. Rb1 {[%emt 0:00:50]} Qc2 {[%emt 0:00:48]} 35. Rf1 {[%emt 0:00:02]} Ne4 {[%emt 0:01:17]} 36. Re1 {[%emt 0:00:08]} Nxd2 {[%emt 0:00:12]} 37. Nxd2 {[%emt 0:00:00]} Kg8 {[%emt 0:00:18]} 38. Qe3 {[%emt 0:00:00]} Rd8 {[%emt 0:00:35]} 39. Qxe7 {[%emt 0:00:00]} Qxd2 {[%emt 0:00:23]} 40. Re2 {[%emt 0:02:20]} Qxd4+ {[%emt 0:00:00]} 41. Rf2 {[%emt 0:50:27]} Qd1+ {[%emt 0:50:32]} 42. Kh2 {[%emt 0:00:11]} Qh1+ {[%emt 0:00:18]} 43. Kg3 {[%emt 0:00:12]} Rd3+ {[%emt 0:01:43]} 44. Kh4 {[%emt 0:00:10]} Rxh3+ {[%emt 0:00:23]} 45. Kg5 {[%emt 0:00:11]} Rh5+ {[%emt 0:00:11]} 46. Kf6 {[%emt 0:01:02]} Qc6+ {[%emt 0:00:14]} 0-1

[Event "4NCL 2019-20"]
[Site "Daventry"]
[Date "2020.01.12"]
[Round "4"]
[White "Gormally, Daniel W"]
[Black "Rendle, Thomas E"]
[Result "1/2-1/2"]
[ECO "C08"]
[WhiteElo "2508"]
[BlackElo "2361"]
[Annotator "ChessBase"]
[PlyCount "33"]
[EventDate "2020.01.11"]
[EventCountry "ENG"]
[SourceTitle "playchess.com"]
[Source "ChessBase"]
[SourceQuality "1"]
[TimeControl "40/6000:3000+30"]

1. e4 {[%emt 0:00:00]} e6 {[%emt 0:00:00]} 2. d4 {[%emt 0:00:00]} d5 {[%emt 0:00:00]} 3. Nd2 {[%emt 0:00:00]} a6 {[%emt 0:00:00]} 4. Ngf3 {[%emt 0:00:00]} c5 {[%emt 0:00:00]} 5. exd5 {[%emt 0:00:00]} exd5 {[%emt 0:00:00]} 6. Be2 {[%emt 0:00:00]} Nf6 {[%emt 0:00:00]} 7. O-O {[%emt 0:00:00]} Be7 {[%emt 0:00:00]} 8. dxc5 {[%emt 0:05:34]} Bxc5 {[%emt 0:00:00]} 9. a3 {[%emt 0:02:37]} O-O {[%emt 0:01:44]} 10. b4 {[%emt 0:00:00]} Ba7 {[%emt 0:01:45]} 11. Bb2 {[%emt 0:02:43]} Nc6 {[%emt 0:01:32]} 12. Nb3 {[%emt 0:02:57]} Re8 {[%emt 0:03:43]} 13. Nfd4 {[%emt 0:04:03]} Ne5 {[%emt 0:05:17]} 14. Na5 {[%emt 0:04:10]} Qd6 {[%emt 0:08:29]} 15. Nf3 {[%emt 0:01:45]} Ng6 {[%emt 0:04:09]} 16. Nd4 {[%emt 0:00:00]} Ne5 17. Nf3 {[%emt 0:00:00]} 1/2-1/2

[Event "4NCL 2019-20"]
[Site "Daventry"]
[Date "2020.01.12"]
[Round "4"]
[White "Cyborowski, Lukasz"]
[Black "Hodgson, John H"]
[Result "1-0"]
[ECO "B53"]
[WhiteElo "2505"]
[BlackElo "2082"]
[Annotator "ChessBase"]
[PlyCount "76"]
[EventDate "2020.01.11"]
[EventCountry "ENG"]
[SourceTitle "playchess.com"]
[Source "ChessBase"]
[SourceQuality "1"]
[TimeControl "40/6000:3000+30"]

1. e4 {[%emt 0:00:00]} c5 {[%emt 0:00:00]} 2. Nf3 {[%emt 0:00:00]} d6 {[%emt 0:00:00]} 3. d4 {[%emt 0:00:00]} cxd4 {[%emt 0:00:00]} 4. Qxd4 {[%emt 0:00:00]} Nc6 {[%emt 0:00:00]} 5. Bb5 {[%emt 0:00:00]} Bd7 {[%emt 0:00:00]} 6. Qd3 {[%emt 0:00:00]} g6 {[%emt 0:00:00]} 7. c4 {[%emt 0:00:00]} Bg7 {[%emt 0:00:00]} 8. O-O {[%emt 0:00:00]} Nf6 {[%emt 0:00:00]} 9. h3 {[%emt 0:00:00]} O-O {[%emt 0:00:00]} 10. Nc3 {[%emt 0:00:00]} a6 {[%emt 0:00:00]} 11. Bxc6 {[%emt 0:00:00]} Bxc6 {[%emt 0:00:00]} 12. Nd4 {[%emt 0:00:00]} Rc8 {[%emt 0:00:00]} 13. Be3 {[%emt 0:00:00]} Nd7 {[%emt 0:00:00]} 14. Rac1 {[%emt 0:01:29]} Nc5 {[%emt 0:00:00]} 15. Qc2 {[%emt 0:00:00]} Bd7 {[%emt 0:00:00]} 16. Qe2 {[%emt 0:06:58]} f5 {[%emt 0:03:13]} 17. exf5 {[%emt 0:04:34]} gxf5 {[%emt 0:00:00]} 18. f4 {[%emt 0:00:01]} Rf6 {[%emt 0:12:03]} 19. b4 {[%emt 0:08:39]} Ne6 {[%emt 0:13:42]} 20. Nf3 {[%emt 0:02:41]} Rh6 {[%emt 0:17:25]} 21. Nd5 {[%emt 0:04:56]} Kh8 {[%emt 0:08:24]} 22. Rfd1 {[%emt 0:12:20]} Qf8 {[%emt 0:07:20]} 23. Nb6 {[%emt 0:11:30]} Rd8 {[%emt 0:00:00]} 24. Nxd7 {[%emt 0:01:31]} Rxd7 {[%emt 0:00:00]} 25. c5 {[%emt 0:00:00]} Nd8 {[%emt 0:02:37]} 26. a4 {[%emt 0:00:19]} Qe8 {[%emt 0:07:44]} 27. Qd3 {[%emt 0:02:03]} Rf6 {[%emt 0:00:48]} 28. Ne5 {[%emt 0:08:23]} Rc7 {[%emt 0:00:18]} 29. cxd6 {[%emt 0:01:10]} Rxc1 {[%emt 0:02:05]} 30. Rxc1 {[%emt 0:00:00]} Rxd6 {[%emt 0:01:01]} 31. Qxf5 {[%emt 0:00:00]} e6 {[%emt 0:02:15]} 32. Qe4 {[%emt 0:04:38]} Nc6 {[%emt 0:03:26]} 33. Nf3 {[%emt 0:03:19]} Qg6 {[%emt 0:04:40]} 34. Qxg6 {[%emt 0:02:01]} hxg6 {[%emt 0:00:00]} 35. b5 {[%emt 0:00:00]} axb5 {[%emt 0:00:00]} 36. axb5 {[%emt 0:00:00]} Ne7 {[%emt 0:00:40]} 37. Rc7 {[%emt 0:02:31]} Rd1+ {[%emt 0:00:00]} 38. Kf2 {[%emt 0:00:19]} Nd5 {[%emt 0:00:00]} 1-0

[Event "4NCL 2019-20"]
[Site "Daventry"]
[Date "2020.01.12"]
[Round "4"]
[White "Gordon, Stephen J"]
[Black "Macklin, Paul"]
[Result "1-0"]
[ECO "E94"]
[WhiteElo "2504"]
[BlackElo "2341"]
[Annotator "ChessBase"]
[PlyCount "81"]
[EventDate "2020.01.11"]
[EventCountry "ENG"]
[SourceTitle "playchess.com"]
[Source "ChessBase"]
[SourceQuality "1"]
[TimeControl "40/6000:3000+30"]

1. d4 {[%emt 0:00:32]} Nf6 {[%emt 0:00:00]} 2. c4 {[%emt 0:00:01]} g6 {[%emt 0:00:00]} 3. Nc3 {[%emt 0:00:00]} Bg7 {[%emt 0:00:00]} 4. e4 {[%emt 0:00:00]} d6 {[%emt 0:00:00]} 5. Nf3 {[%emt 0:00:00]} O-O {[%emt 0:00:00]} 6. Be2 {[%emt 0:00:00]} Na6 {[%emt 0:00:00]} 7. O-O {[%emt 0:00:00]} e5 {[%emt 0:00:00]} 8. Be3 {[%emt 0:00:00]} c6 {[%emt 0:00:00]} 9. d5 {[%emt 0:00:00]} Ng4 {[%emt 0:00:00]} 10. Bg5 {[%emt 0:00:00]} f6 {[%emt 0:00:00]} 11. Bh4 {[%emt 0:00:00]} c5 {[%emt 0:01:33]} 12. Ne1 {[%emt 0:02:48]} Nh6 {[%emt 0:03:40]} 13. Nc2 {[%emt 0:01:05]} Qe8 {[%emt 0:17:17]} 14. Nb5 {[%emt 0:09:38]} Qd7 {[%emt 0:04:03]} 15. a3 {[%emt 0:06:18]} f5 {[%emt 0:07:31]} 16. exf5 {[%emt 0:00:35]} gxf5 {[%emt 0:01:15]} 17. f4 {[%emt 0:01:19]} e4 {[%emt 0:00:00]} 18. Rb1 {[%emt 0:06:45]} Nc7 {[%emt 0:00:00]} 19. Be1 {[%emt 0:04:29]} Ne8 {[%emt 0:07:56]} 20. b4 {[%emt 0:01:12]} b6 {[%emt 0:00:00]} 21. a4 {[%emt 0:07:11]} Nf6 {[%emt 0:03:12]} 22. h3 {[%emt 0:03:01]} Qe7 {[%emt 0:16:27]} 23. a5 {[%emt 0:10:16]} Bd7 {[%emt 0:01:28]} 24. bxc5 {[%emt 0:04:33]} bxc5 {[%emt 0:01:20]} 25. Bc3 {[%emt 0:04:18]} Kh8 {[%emt 0:13:32]} 26. Ne3 {[%emt 0:02:11]} Bc8 {[%emt 0:05:13]} 27. Qe1 {[%emt 0:02:48]} Rg8 {[%emt 0:04:21]} 28. Kh1 {[%emt 0:01:58]} a6 {[%emt 0:00:55]} 29. Na3 {[%emt 0:00:00]} Ra7 {[%emt 0:02:34]} 30. Rb6 {[%emt 0:00:15]} Nd7 {[%emt 0:01:58]} 31. Bxg7+ {[%emt 0:01:28]} Rxg7 {[%emt 0:00:00]} 32. Rb3 {[%emt 0:00:16]} Rb7 {[%emt 0:02:57]} 33. Rxb7 {[%emt 0:00:15]} Bxb7 {[%emt 0:00:00]} 34. g4 {[%emt 0:06:01]} fxg4 {[%emt 0:00:43]} 35. hxg4 {[%emt 0:00:00]} Bc8 {[%emt 0:00:35]} 36. g5 {[%emt 0:00:56]} Nf8 {[%emt 0:00:11]} 37. gxh6 {[%emt 0:10:27]} Rg6 {[%emt 0:00:00]} 38. f5 {[%emt 0:00:14]} Rxh6+ {[%emt 0:00:00]} 39. Kg2 {[%emt 0:01:00]} Ng6 {[%emt 0:00:00]} 40. Qg3 {[%emt 0:00:38]} Ne5 {[%emt 0:00:41]} 41. Nac2 {[%emt 0:15:50]} 1-0